Cogmind - Beta 10.2 @@@ ROGUE MODE // 2022.02.16 @ 16:21:31 Player: FResh Result: Self-destructed Performance ------------- Evolutions (7) 3500 Regions Visited (24) 4800 Robots Destroyed (254) 1270 Value Destroyed (10256) 10256 Prototype IDs (66) 1320 Alien Tech Used (1) 200 Bonus (8092) 8092 TOTAL SCORE: 29438 Bonus ------- High Alert Combat Kills 1048 Follower Combat Kills 3174 Entered Garrisons 200 Used RIF Installer 500 Aligned with FarCom 300 Met Data Miner 300 Met Zhirov 300 Built Enhanced Grunts 300 Met R17 at Cetus 500 Met R17 at Research 2000 Friendly Fire -530 Cogmind --------- Core Integrity 1221/1300 Matter 300/300 Energy 340/340 System Corruption 0% Temperature Cool (0) Movement Treading (162) Location -3/Research Parts ------- > --- POWER (1) -------- Heavy Antimatter Reactor > --- PROPULSION (6) --- Medium Treads Armored Medium Treads Heavy Treads Heavy Treads > --- UTILITY (9) ------ High-capacity Storage Unit High-capacity Storage Unit High-capacity Storage Unit Advanced Signal Interpreter Improved Target Analyzer Advanced Armor Integrity Analyzer Heavy Armor Plating Improved Medium Armor Plating > --- WEAPON (5) ------- KE Penetrator KE Penetrator Improved KE Penetrator Improved KE Penetrator Improved KE Penetrator > --- INVENTORY (28) --- Reinforced Fission Core Medium Treads Medium Treads Armored Medium Treads Centrium Heavy Treads Improved Matter Compressor (300) Improved Matter Compressor (300) Improved Core Analyzer Heavy Armor Plating Layered Medium Armor Plating Layered Medium Armor Plating Layered Medium Armor Plating Centrium Medium Armor Plating Centrium Medium Armor Plating Transdimensional Reconstructor Neutron Cannon Coil Gun Coil Gun Railgun Railgun Railgun Railgun Improved KE Penetrator Smartbomb Launcher Improved Datajack Peak State ------------ > --- POWER ------------ Quantum Reactor > --- PROPULSION ------- Improved Medium Treads Armored Medium Treads Centrium Heavy Treads Centrium Heavy Treads > --- UTILITY ---------- Experimental Heat Sink High-capacity Storage Unit High-capacity Storage Unit High-capacity Storage Unit Advanced Signal Interpreter Improved Core Analyzer Centrium Medium Armor Plating Centrium Medium Armor Plating > --- WEAPON ----------- KE Penetrator KE Penetrator KE Penetrator Improved KE Penetrator > --- INVENTORY -------- Quantum Reactor Medium Treads Medium Treads Medium Treads Armored Medium Treads Centrium Heavy Treads Advanced Heat Sink Improved Matter Compressor Improved Matter Compressor Advanced Terrain Scanner Improved Core Analyzer Improved Medium Armor Plating Centrium Medium Armor Plating Centrium Medium Armor Plating Hacking Suite Neutron Cannon Coil Gun Improved KE Penetrator Improved KE Penetrator Improved KE Penetrator Improved KE Penetrator Enhanced Gauss Cannon Guided EMP Blaster Improved Datajack Power Sword [Rating: 135] Favorites ----------- Power Quantum Reactor Engine Angular Momentum Engine Power Core Light Nuclear Core Reactor Quantum Reactor Propulsion Light Treads Treads Light Treads Leg Enhanced Flexi-carbon Leg Wheel Wheel Flight Unit VTOL Module Utility High-capacity Storage Unit Device Experimental Heat Sink Storage High-capacity Storage Unit Processor Advanced Targeting Computer Hackware Improved Hacking Suite Protection Centrium Medium Armor Plating Weapon KE Penetrator Energy Gun EM Pulse Gun Energy Cannon Heavy Plasma Cannon Ballistic Gun KE Penetrator Launcher Grenade Launcher Impact Weapon Power Maul Slashing Weapon Great Axe Special Melee Weapon Improved Datajack Build | -11 -10 -10 -10 -9 -8 -7 -7 -7 -7 -7 -7 -6 -6 -6 -6 -6 -6 -5 -4 -4 -4 -4 -3 -3 ------- Run | Scr Mat Min Exi Min Mat Fac Gar Fac Low Low Dat Pro Fac Ext Cet Arc Hub Fac Fac Upp Upp Zhi Pro Res Slots Evolved 14 | . . . . . 4 2 . . . . . . 2 . . . . 2 2 . . . . 2 Power . | . . . . . . . . . . . . . . . . . . . . . . . . . Propulsion 4 | . . . . . 2 1 . . . . . . . . . . . 1 . . . . . . Utility 7 | . . . . . 1 1 . . . . . . 2 . . . . . 2 . . . . 1 Weapon 3 | . . . . . 1 . . . . . . . . . . . . 1 . . . . . 1 Parts Attached 247 | 4 14 8 1 . 16 14 11 4 6 2 . 27 23 16 16 3 5 14 24 13 4 10 3 9 Power 16 | . 3 2 . . 1 1 . 1 . . . 2 1 . 1 . . . 1 1 1 1 . . Engine 7 | . 3 1 . . . 1 . . . . . 1 1 . . . . . . . . . . . Core 4 | . . 1 . . 1 . . 1 . . . . . . . . . . . . 1 . . . Reactor 5 | . . . . . . . . . . . . 1 . . 1 . . . 1 1 . 1 . . Propulsion 74 | 2 3 2 . . 5 4 8 . 4 1 . 15 11 6 2 1 . 2 2 3 . . . 3 Treads 46 | 1 1 . . . 3 3 5 . 4 1 . 5 4 6 2 1 . 2 2 3 . . . 3 Leg 10 | . . . . . . . . . . . . 6 4 . . . . . . . . . . . Wheel 17 | 1 2 2 . . 2 1 3 . . . . 3 3 . . . . . . . . . . . Hover . | . . . . . . . . . . . . . . . . . . . . . . . . . Flight 1 | . . . . . . . . . . . . 1 . . . . . . . . . . . . Utility 59 | 1 4 . 1 . 1 2 . 3 . . . . 4 2 8 . . 6 10 5 2 2 3 5 Device 10 | . . . . . . 1 . . . . . . . . 1 . . 1 4 . . 2 1 . Storage 13 | 1 3 . 1 . . . . 2 . . . . . 1 . . . 3 . 1 . . . 1 Processor 9 | . 1 . . . 1 1 . 1 . . . . 1 . . . . . 1 . 1 . . 2 Hackware 1 | . . . . . . . . . . . . . . . 1 . . . . . . . . . Protection 26 | . . . . . . . . . . . . . 3 1 6 . . 2 5 4 1 . 2 2 Artifact . | . . . . . . . . . . . . . . . . . . . . . . . . . Weapon 98 | 1 4 4 . . 9 7 3 . 2 1 . 10 7 8 5 2 5 6 11 4 1 7 . 1 Energy Gun 21 | 1 3 2 . . 5 1 . . . . . 6 2 1 . . . . . . . . . . Energy Cannon 4 | . . . . . . . . . . . . . 2 . . . 1 1 . . . . . . Ballistic Gun 55 | . 1 1 . . 3 4 2 . 2 1 . 2 2 4 5 2 3 4 9 3 1 5 . 1 Ballistic Cannon . | . . . . . . . . . . . . . . . . . . . . . . . . . Launcher 5 | . . 1 . . . . 1 . . . . 1 . . . . 1 . . . . 1 . . Special Weapon . | . . . . . . . . . . . . . . . . . . . . . . . . . Impact Weapon 3 | . . . . . 1 2 . . . . . . . . . . . . . . . . . . Slashing Weapon 5 | . . . . . . . . . . . . 1 . 1 . . . 1 2 . . . . . Piercing Weapon . | . . . . . . . . . . . . . . . . . . . . . . . . . Special Melee Weapon 5 | . . . . . . . . . . . . . 1 2 . . . . . 1 . 1 . . Unidentified Prototypes 16 | . . . . . 1 . . . . . . 1 . 1 4 . 1 . 4 . . 4 . . Parts Lost 63 | . 4 3 . . 1 . 7 . 4 2 . 21 2 . 1 . . 2 5 9 2 . . . Power 3 | . 1 . . . . . . . . . . 1 . . . . . . 1 . . . . . Propulsion 26 | . 1 . . . . . 6 . 2 1 . 12 1 . . . . . . 3 . . . . Utility 8 | . . . . . . . . . . . . . . . . . . 1 2 4 1 . . . Weapon 26 | . 2 3 . . 1 . 1 . 2 1 . 8 1 . 1 . . 1 2 2 1 . . . Highest Loss Streak 6 | . 2 1 . . 1 . 3 . 3 1 . 6 2 . 1 . . 1 2 4 1 . . . Average Slot Usage (%) 91 | . 98 99 87 85 90 91 88 93 99 99 100 94 93 100 93 93 92 87 85 82 82 67 83 86 Engine 2 | . 13 5 . . . 5 7 . . . . 1 6 6 5 . . . . . . . . . Core 2 | . . 8 14 14 9 1 . 6 7 7 7 4 . . . . . . . . 2 3 . . Reactor 1 | . . . . . . . . . . . . . . . 1 6 6 5 5 5 2 1 5 4 Treads 18 | . 14 14 14 14 18 22 24 23 22 22 23 17 13 24 26 26 26 23 17 15 15 15 15 18 Leg 1 | . . . . . . . . . . . . 15 7 . . . . . . . . . . . Wheel 6 | . 12 14 14 14 18 15 10 15 15 15 15 2 11 8 . . . . . . . . . . Storage 15 | . 27 28 16 14 9 7 7 8 15 15 15 15 13 13 13 13 13 14 15 15 15 15 15 14 Processor 9 | . . . . . 9 14 15 15 15 15 15 15 13 13 13 13 13 7 10 8 3 5 5 13 Protection 6 | . . . . . . . . . . . . . 6 13 9 13 13 10 9 10 14 11 18 11 Energy Gun 4 | . 23 12 14 14 15 4 . . . . . 7 2 3 . . . . . . . . . . Ballistic Gun 16 | . 4 12 14 14 10 16 22 23 22 23 23 12 9 15 19 20 19 22 20 20 21 2 21 23 Naked Turns . | . . . . . . . . . . . . . . . . . . . . . . . . . Heaviest Build 164 | 15 31 33 89 89 97 102 102 102 83 83 83 88 115 107 111 113 115 155 152 161 161 154 158 164 Greatest Support 220 | 10 20 10 10 10 20 20 82 60 20 20 20 76 76 118 166 166 166 218 220 220 220 220 220 220 Greatest Overweight (x) 11 | 1 3 3 8 8 4 5 10 5 4 4 4 8 11 3 . 1 . . . . . . . . Average Overweight (x) 2 | 1 2 2 6 8 4 4 4 3 4 4 4 1 4 2 . . . . . . . . . . Largest Inventory Capacity 28 | 8 14 14 24 24 24 24 24 24 20 20 20 20 20 20 20 20 20 28 28 28 28 28 28 28 Average Capacity 22 | 6 12 14 22 24 24 24 24 22 20 20 20 20 20 20 20 20 20 25 28 28 28 28 28 28 Most Carried 28 | 6 14 14 19 21 24 24 24 24 20 20 20 20 20 20 20 20 20 27 28 28 25 28 25 28 Average Carried 20 | 6 11 11 16 20 21 23 22 20 19 19 20 15 15 19 19 19 19 22 27 25 23 27 24 26 Final Capacity 28 | 8 14 14 24 24 24 24 24 20 20 20 20 20 20 20 20 20 20 28 28 28 28 28 28 28 Final Carried 28 | 6 9 14 19 21 24 24 23 20 20 20 20 10 19 20 20 20 20 27 28 24 24 25 25 28 Class Distribution -------------------- 19% | Scavenger-Tank 14% | Mutant 13% | Hauler-Tank 12% | Scavenger-Gunner 10% | Hauler-Mutant 8% | Scavenger-Mutant 8% | Scavenger-Skirmisher 7% | Hauler-Skirmisher Dominant Class ---------------- Mutant | -10/Materials Mutant | -10/Mines Hauler-Mutant | -10/Exiles Hauler-Mutant | -9/Mines Hauler-Skirmisher | -8/Materials Scavenger-Skirmisher | -7/Factory Hauler-Skirmisher | -7/Garrison Hauler-Skirmisher | -7/Factory Hauler-Gunner | -7/Lower Caves Scavenger-Gunner | -7/Lower Caves Scavenger-Gunner | -7/Data Miner Scavenger-Gunner | -6/Proximity Caves Hauler-Mutant | -6/Factory Commander-Mutant | -6/Extension Scavenger-Skirmisher | -6/Cetus Scavenger-Tank | -6/Archives Scavenger-Tank | -6/Hub_04(d) Scavenger-Tank | -5/Factory Hauler-Tank | -4/Factory Hauler-Tank | -4/Upper Caves Hauler-Tank | -4/Upper Caves Hauler-Mutant | -4/Zhirov Hauler-Tank | -3/Proximity Caves Scavenger-Gunner | -3/Research Resources | -11 -10 -10 -10 -9 -8 -7 -7 -7 -7 -7 -7 -6 -6 -6 -6 -6 -6 -5 -4 -4 -4 -4 -3 -3 ----------- Run | Scr Mat Min Exi Min Mat Fac Gar Fac Low Low Dat Pro Fac Ext Cet Arc Hub Fac Fac Upp Upp Zhi Pro Res Matter Collected 9418 | 246 242 238 . 10 269 224 466 59 648 165 . 543 327 561 478 120 215 1322 1589 737 187 . 338 434 Remotely . | . . . . . . . . . . . . . . . . . . . . . . . . . Salvage Created 13660 | 78 806 199 . . 684 385 516 59 462 330 . 831 415 821 342 146 329 1598 3478 1096 158 . 321 606 Parts 625 | 1 53 14 . . 28 31 27 2 17 20 . 34 21 41 10 6 15 86 134 38 8 . 11 28 Haulers Intercepted 13 | . 2 . . . 1 . . . . . . . 1 . . . 1 3 5 . . . . . Recyclers Shooed 10 | . 1 . . . . . . . . . . . 2 3 . . . 2 2 . . . . . Parts Field Recycled . | . . . . . . . . . . . . . . . . . . . . . . . . . Retrieved Matter . | . . . . . . . . . . . . . . . . . . . . . . . . . Parts Self-Destructed 142 | . . . . . . . . . 6 19 . 48 . . . . . . . 38 18 . 13 . Prevented 17 | . . . . . . . . . . . . 11 . . . . . . . . 4 . 2 . Kills | -11 -10 -10 -10 -9 -8 -7 -7 -7 -7 -7 -7 -6 -6 -6 -6 -6 -6 -5 -4 -4 -4 -4 -3 -3 ------- Run | Scr Mat Min Exi Min Mat Fac Gar Fac Low Low Dat Pro Fac Ext Cet Arc Hub Fac Fac Upp Upp Zhi Pro Res Combat Hostiles Destroyed 195 | . 14 20 . . 7 3 13 1 9 8 . 20 5 9 5 2 3 16 28 18 3 . 4 7 Melee 6 | . . . . . . . . . . . . 5 1 . . . . . . . . . . . Guns 170 | . 12 8 . . 6 3 11 1 9 8 . 14 3 9 5 2 3 16 28 18 3 . 4 7 Cannons 1 | . . . . . . . . . . . . . 1 . . . . . . . . . . . AOE 17 | . 2 12 . . . . 2 . . . . 1 . . . . . . . . . . . . Classes Destroyed 21 | 1 6 1 . . 2 1 1 . 3 . . . . 1 . . . . 2 . . . . 3 Worker 15 | . 1 . . . . 5 . . . . . . . 1 . . 2 4 1 . . . . 1 Builder 14 | . 2 . . . 1 . . . . . . . . 2 . . 1 3 4 . . . . 1 Tunneler 1 | . . . . . . . . . . . . . . . . . . . . . . . . 1 Hauler 13 | . 2 . . . 1 . . . . . . . 1 . . . 1 3 5 . . . . . Recycler 14 | 1 1 . . . 2 2 . . . . . . . 2 . . . 1 5 . . . . . Carrier 1 | . . . . . . . . . . . . . . . . . . . 1 . . . . . Operator 1 | . . . . . 1 . . . . . . . . . . . . . . . . . . . Watcher 11 | . 2 . . . 1 3 . . . . . . 1 . . . 1 1 2 . . . . . Swarmer 43 | . 3 5 . . . . 6 . 2 4 . 11 . 4 1 . . . . 6 1 . . . Grunt 58 | . 11 2 . . 5 . 2 . . 4 . 4 . . 3 . 1 6 13 2 2 . 3 . Brawler 8 | . . . . . . . . . . . . 2 . . . . 1 . 1 4 . . . . Duelist 8 | . . . . . . . . . . . . 2 . . . . . . 4 2 . . . . Protector 1 | . . . . . . . . . . . . . . . . . . . 1 . . . . . Sentry 29 | . . . . . 2 1 4 1 . . . 1 4 4 . 2 1 2 3 2 . . . 2 Demolisher 1 | . . . . . . . . . . . . . . . . . . . . . . . . 1 Hunter 8 | . . . . . . . 1 . . . . . . . . . . 4 . . . . 1 2 Programmer 15 | . . . . . . 2 . . 1 . . . 1 . . . . 4 6 1 . . . . Behemoth 2 | . . . . . . . . . . . . . . 1 . . . . . 1 . . . . Cetus Guard 1 | . . . . . . . . . . . . . . . 1 . . . . . . . . . Striker 2 | . . . . . . . . . . . . . . . . . . . . . . . . 2 Assembled 13 | . . 13 . . . . . . . . . . . . . . . . . . . . . . Thug 1 | . . . . . . . . . . . . . . . 1 . . . . . . . . . Savage 2 | . . . . . . . . . 1 . . . . 1 . . . . . . . . . . Butcher 4 | . . . . . . . . . 4 . . . . . . . . . . . . . . . Mutant 1 | . . . . . . . . . 1 . . . . . . . . . . . . . . . Best Kill Streak 10 | 1 8 10 . . 4 5 9 1 3 4 . 8 1 6 3 1 5 8 7 9 2 . 3 5 Combat Bots Only 10 | . 7 10 . . 3 1 9 1 3 4 . 8 1 3 3 1 2 5 4 9 2 . 3 3 Max Kills in Single Turn 3 | 1 2 2 . . 2 2 2 1 1 2 . 1 1 2 1 1 2 2 3 2 1 . 1 2 Gunslinging 1 | . 1 . . . . . 1 . . 1 . . . 1 . . . . 1 1 . . . . Exploded 2 | . 2 2 . . . . 1 . . . . 1 . . . . . . . . . . . . Melee 1 | . . . . . . . . . . . . 1 1 . . . . . . . . . . . Uniques/NPCs Destroyed . | . . . . . . . . . . . . . . . . . . . . . . . . . Combat | -11 -10 -10 -10 -9 -8 -7 -7 -7 -7 -7 -7 -6 -6 -6 -6 -6 -6 -5 -4 -4 -4 -4 -3 -3 -------- Run | Scr Mat Min Exi Min Mat Fac Gar Fac Low Low Dat Pro Fac Ext Cet Arc Hub Fac Fac Upp Upp Zhi Pro Res Damage Taken 18158 | . 530 523 . . 321 341 1062 146 568 458 . 2348 738 478 418 170 276 1709 3444 2794 450 . 735 649 Core 1302 | . 51 78 . . 14 15 101 11 147 18 . 322 111 34 8 25 26 23 92 90 17 . 40 79 Absorbed by Shields 325 | . . . . . . . . . . . . . . 199 126 . . . . . . . . . Reduced by Siege Mode 586 | . . . . . . . . . . . . . . . . . . 58 321 146 16 . 37 8 Core Remaining (%) 72 | 100 . . . 48 97 . . . . . . 12 . . . . 76 97 . . . . 79 . Volleys Fired 557 | 2 51 34 . . 33 19 27 4 19 10 . 43 22 30 22 6 20 56 85 37 9 . 10 18 Largest 5 | 2 2 2 . . 3 3 3 3 3 3 . 3 3 3 3 3 3 4 4 4 4 . 4 5 Hottest 198 | 60 80 80 . . 150 133 89 89 89 84 . 169 198 148 86 84 101 136 136 134 136 . 136 171 Shots Fired 1729 | 4 101 56 . . 99 54 75 12 57 30 . 116 50 90 66 18 56 205 329 149 36 . 40 86 Gun 1688 | 4 101 46 . . 99 54 72 12 57 30 . 115 33 86 66 18 54 201 329 149 36 . 40 86 Cannon 26 | . . . . . . . . . . . . . 17 4 . . 1 4 . . . . . . Launcher 15 | . . 10 . . . . 3 . . . . 1 . . . . 1 . . . . . . . Special . | . . . . . . . . . . . . . . . . . . . . . . . . . Kinetic 1487 | 2 51 21 . . 38 44 72 12 57 30 . 71 30 80 66 18 54 201 329 149 36 . 40 86 Thermal 47 | . 7 . . . . 4 . . . . . 7 20 4 . . 1 4 . . . . . . Explosive 14 | . . 10 . . . . 3 . . . . 1 . . . . . . . . . . . . Electromagnetic 181 | 2 43 25 . . 61 6 . . . . . 37 . 6 . . 1 . . . . . . . Robot Hit Streak 52 | 2 8 6 . . 11 11 25 6 15 19 . 17 16 25 21 11 13 32 52 25 13 . 9 17 Robot Miss Streak 9 | 1 4 6 . . 5 2 3 2 4 9 . 6 3 6 6 6 5 2 3 5 3 . 2 2 Penetration Max 1 | . . . . . . . . . 1 . . . . . . . 1 1 1 1 1 . 1 1 Secondary Targets 41 | . 2 2 . . 1 . 2 . 3 3 . 2 . 1 2 . 1 1 10 7 1 . 2 1 Max Gunslinging Chain 1 | . 1 1 . . 1 . 1 . 1 1 . 1 . 1 1 . 1 1 1 1 1 . 1 1 Shots Hit Robots 1353 | 3 61 25 . . 64 34 54 11 46 25 . 115 43 93 63 18 42 157 268 110 28 3 30 60 Core Hits 832 | 2 34 35 . . 23 19 37 5 39 33 . 103 33 72 62 33 33 58 116 45 11 . 13 26 Critical Hits 84 | . . . . . . 1 1 1 1 . . . 2 1 . . 2 23 28 12 3 . 4 5 Critical Kills 26 | . . . . . . 1 1 . . . . . . 1 . . 1 7 11 1 . . 1 2 Critical Parts Destroyed 50 | . . . . . . . . . 1 . . . 1 . . . 1 16 16 6 3 . 3 3 Melee Attacks 52 | . . . . . 1 7 . . . . . 8 7 13 . . . 1 6 6 . 3 . . Impact 8 | . . . . . 1 7 . . . . . . . . . . . . . . . . . . Slashing 22 | . . . . . . . . . . . . 8 6 1 . . . 1 6 . . . . . Piercing . | . . . . . . . . . . . . . . . . . . . . . . . . . Sneak Attacks 21 | . . . . . . . . . . . . . . 12 . . . . . 6 . 3 . . Combat Hostiles . | . . . . . . . . . . . . . . . . . . . . . . . . . Follow-up Attacks . | . . . . . . . . . . . . . . . . . . . . . . . . . Damage Inflicted 33205 | 58 835 974 . . 1293 1525 1434 215 899 441 . 2698 1229 1608 1218 497 1284 4481 7329 2616 735 . 668 1168 Guns 29507 | 38 761 268 . . 1060 850 1249 215 899 441 . 2017 632 1577 1218 497 1247 4175 7176 2616 735 . 668 1168 Cannons 436 | . . . . . . . . . . . . . 405 31 . . . . . . . . . . Explosions 2661 | 20 74 706 . . 233 675 185 . . . . 436 . . . . 37 152 143 . . . . . Melee 437 | . . . . . . . . . . . . 245 192 . . . . . . . . . . . Ramming 164 | . . . . . . . . . . . . . . . . . . 154 10 . . . . . Kinetic 27009 | 13 312 101 . . 202 628 1249 215 899 441 . 1367 555 1527 1218 497 1247 4175 7176 2616 735 . 668 1168 Thermal 1694 | 20 124 32 . . 233 139 . . . . . 338 482 31 . . . 152 143 . . . . . Explosive 1643 | . . 674 . . . 630 185 . . . . 154 . . . . . . . . . . . . Electromagnetic 2258 | 25 399 167 . . 858 128 . . . . . 594 . 50 . . 37 . . . . . . . Impact . | . . . . . . . . . . . . . . . . . . . . . . . . . Slashing 437 | . . . . . . . . . . . . 245 192 . . . . . . . . . . . Piercing . | . . . . . . . . . . . . . . . . . . . . . . . . . Highest Corruption 16 | . . . . . . 1 1 1 1 1 1 1 . . . . . 10 7 11 16 16 16 . Average Corruption 4 | . . . . . . 1 1 1 1 1 1 1 . . . . . 4 4 7 11 16 16 . Corruption Purged . | . . . . . . . . . . . . . . . . . . . . . . . . . Effects 196 | . . . . . . 3 3 . 3 4 1 6 . . . . . 32 36 43 16 18 31 . Message Errors 37 | . . . . . . 1 1 . 1 . 1 5 . . . . . 5 5 6 4 5 3 . Matter Fused 24 | . . . . . . . . . . . . . . . . . . 5 2 8 2 6 1 . Heat Flow Errors 13 | . . . . . . . . . . . . . . . . . . 3 4 1 3 . 2 . Energy Discharges 23 | . . . . . . 1 1 . 1 3 . 1 . . . . . 5 5 1 3 1 1 . Parts Rejected 1 | . . . . . . . . . . . . . . . . . . . . . . . 1 . Data Loss (minor) 19 | . . . . . . . 1 . 1 1 . . . . . . . 3 2 1 . 3 7 . Data Loss (major) 4 | . . . . . . . . . . . . . . . . . . . 1 1 . . 2 . Misfires 4 | . . . . . . . . . . . . . . . . . . . . 4 . . . . Alerts 2 | . . . . . . . . . . . . . . . . . . 1 . . . 1 . . Misdirections 11 | . . . . . . . . . . . . . . . . . . . . 1 2 2 6 . Targeting Errors 53 | . . . . . . 1 . . . . . . . . . . . 10 15 17 2 . 8 . Weapon Failures 5 | . . . . . . . . . . . . . . . . . . . 2 3 . . . . Overload Shots . | . . . . . . . . . . . . . . . . . . . . . . . . . Overflow Damage 255 | . 23 30 . . 6 90 . . . . . 31 . . . . . 62 13 . . . . . Projectiles . | . . . . . . . . . . . . . . . . . . . . . . . . . Explosions 237 | . 23 30 . . 6 90 . . . . . 31 . . . . . 44 13 . . . . . Melee 18 | . . . . . . . . . . . . . . . . . . 18 . . . . . . Knockbacks 1 | . . . . . . . . . . . . . . . . . . 1 . . . . . . Impact 1 | . . . . . . . . . . . . . . . . . . 1 . . . . . . Kinetic . | . . . . . . . . . . . . . . . . . . . . . . . . . Secondary . | . . . . . . . . . . . . . . . . . . . . . . . . . Self-Inflicted Damage 209 | . 60 41 . . . 22 . . . . . 86 . . . . . . . . . . . . Shots 7 | . 2 2 . . . 1 . . . . . 2 . . . . . . . . . . . . Rammed 4 | . . . . . . . . . . . . . . . . . . 3 1 . . . . . Targets Rammed 5 | . . . . . . . . . . . . . . . . . . 4 1 . . . . . Kicked . | . . . . . . . . . . . . . . . . . . . . . . . . . Crushed 1 | . . . . . . . . . . . . . . . . . . 1 . . . . . . Highest Temperature 350 | . 153 94 . . 309 117 87 51 24 123 . 306 283 315 123 92 254 350 300 93 125 . 180 48 Average Temperature 70 | . 39 25 . . 84 31 31 33 7 49 . 81 117 55 31 46 73 110 105 18 37 . 47 23 Received Heat Transfer 2808 | . 225 151 . . 153 36 120 54 . 162 . 408 252 49 37 36 54 102 489 342 63 . 48 27 Effects 6 | . . . . . 1 . . . . . . . . . . . . 2 3 . . . . . Energy Bleed 2 | . . . . . . . . . . . . . . . . . . 2 . . . . . . Interference 4 | . . . . . 1 . . . . . . . . . . . . . 3 . . . . . Siege Activations 33 | . . . . . . . . . . . . . . . . . . 8 11 5 2 . 2 5 Total Turns 578 | . . . . . . . . . . . . . . . . . . 146 228 91 23 . 37 53 Longest Duration 35 | . . . . . . . . . . . . . . . . . . 34 35 33 12 . 23 15 Robots Corrupted 1 | . . . . . 1 . . . . . . . . . . . . . . . . . . . Combat Hostiles 1 | . . . . . 1 . . . . . . . . . . . . . . . . . . . Parts Fried 9 | . . . . . 3 4 . . . . . 2 . . . . . . . . . . . . Impact Corruptions 1 | . . . . . . . . . . . . . . . . . . 1 . . . . . . Robots Melted . | . . . . . . . . . . . . . . . . . . . . . . . . . Combat Hostiles . | . . . . . . . . . . . . . . . . . . . . . . . . . Parts Melted 6 | 1 . . . . 1 . . . . . . 1 1 2 . . . . . . . . . . Heat Transferred 2332 | 50 298 . . . 300 198 . . . . . 411 775 50 . . . 100 150 . . . . . Parts Sabotaged . | . . . . . . . . . . . . . . . . . . . . . . . . . Parts Stolen . | . . . . . . . . . . . . . . . . . . . . . . . . . Parts Stripped . | . . . . . . . . . . . . . . . . . . . . . . . . . Power Chain Reactions 11 | 1 2 1 . . 3 1 . . . . . 3 . . . . . . . . . . . . Missiles Intercepted . | . . . . . . . . . . . . . . . . . . . . . . . . . Alert | -11 -10 -10 -10 -9 -8 -7 -7 -7 -7 -7 -7 -6 -6 -6 -6 -6 -6 -5 -4 -4 -4 -4 -3 -3 ------- Run | Scr Mat Min Exi Min Mat Fac Gar Fac Low Low Dat Pro Fac Ext Cet Arc Hub Fac Fac Upp Upp Zhi Pro Res Peak Influence 912 | 5 297 78 . . 526 310 415 286 . . . . 227 575 912 549 722 579 863 . . . . 190 Initial 364 | . 3 33 . . . 205 93 217 . . . . 202 53 321 364 191 344 272 . . . . 103 Average 258 | 3 152 51 . . 202 153 253 255 . . . . 123 257 592 524 441 330 614 . . . . 75 Maximum Alert Level 3 | . 1 . . . 2 1 2 1 . . . . 1 2 3 2 3 2 3 . . . . . Low Security (%) 51 | 100 70 100 . 100 63 63 34 . . . . . 68 51 . . 11 27 . . . . . 100 Level 1 21 | . 29 . . . 21 36 45 100 . . . . 31 28 7 6 28 28 8 . . . . . Level 2 23 | . . . . . 14 . 20 . . . . . . 20 72 93 52 43 68 . . . . . Level 3 3 | . . . . . . . . . . . . . . . 20 . 7 . 23 . . . . . Level 4 . | . . . . . . . . . . . . . . . . . . . . . . . . . Level 5 . | . . . . . . . . . . . . . . . . . . . . . . . . . High Security . | . . . . . . . . . . . . . . . . . . . . . . . . . Max Security . | . . . . . . . . . . . . . . . . . . . . . . . . . Squads Dispatched 38 | . 4 . . . 3 3 . 2 . . . 1 1 3 1 . 5 5 8 . . . . 2 Investigation 8 | . 4 . . . 1 . . . . . . . . . 1 . 1 . . . . . . 1 Extermination 8 | . . . . . . 2 . 1 . . . . 1 . . . . 2 2 . . . . . Reinforcement 14 | . . . . . 2 1 . 1 . . . . . 2 . . 4 2 1 . . . . 1 Assault 7 | . . . . . . . . . . . . 1 . 1 . . . . 5 . . . . . Garrison 1 | . . . . . . . . . . . . . . . . . . 1 . . . . . . Intercept . | . . . . . . . . . . . . . . . . . . . . . . . . . Construction Impeded 6 | . . . . . . 1 . . . . . . . 2 . . 2 1 . . . . . . Haulers Reinforced 3 | . . . . . . . . . . . . . . . . . 2 . 1 . . . . . Stealth | -11 -10 -10 -10 -9 -8 -7 -7 -7 -7 -7 -7 -6 -6 -6 -6 -6 -6 -5 -4 -4 -4 -4 -3 -3 --------- Run | Scr Mat Min Exi Min Mat Fac Gar Fac Low Low Dat Pro Fac Ext Cet Arc Hub Fac Fac Upp Upp Zhi Pro Res Distress Signals 18 | . 3 1 . . 1 . . . . . . . . 1 2 . 2 1 2 . . . . 5 Communications Jammed . | . . . . . . . . . . . . . . . . . . . . . . . . . Distress Signals . | . . . . . . . . . . . . . . . . . . . . . . . . . Times Spotted 362 | . 25 21 . . 23 10 13 2 11 9 . 34 7 31 27 9 13 32 46 18 11 . 8 12 Peak Tracking Total 9 | . 5 9 . . 5 2 5 2 4 4 . 8 2 4 9 1 4 5 5 9 4 . 4 3 Tactical Retreats 14 | . 3 1 . . . . . . 1 . . 1 . 2 . . . 3 2 . 1 . . . Traps | -11 -10 -10 -10 -9 -8 -7 -7 -7 -7 -7 -7 -6 -6 -6 -6 -6 -6 -5 -4 -4 -4 -4 -3 -3 ------- Run | Scr Mat Min Exi Min Mat Fac Gar Fac Low Low Dat Pro Fac Ext Cet Arc Hub Fac Fac Upp Upp Zhi Pro Res Traps Triggered 14 | . 4 . . . . 3 . 1 . . . . . 2 . . 1 1 2 . . . . . Indirectly . | . . . . . . . . . . . . . . . . . . . . . . . . . Trap Hack Attempts . | . . . . . . . . . . . . . . . . . . . . . . . . . Triggered . | . . . . . . . . . . . . . . . . . . . . . . . . . Disarmed . | . . . . . . . . . . . . . . . . . . . . . . . . . Reprogrammed . | . . . . . . . . . . . . . . . . . . . . . . . . . Reused . | . . . . . . . . . . . . . . . . . . . . . . . . . Traps Extracted . | . . . . . . . . . . . . . . . . . . . . . . . . . Installed . | . . . . . . . . . . . . . . . . . . . . . . . . . Triggered 3 | . . . . . . . . . 1 . . . . . . . . . . . 1 . 1 . Machines | -11 -10 -10 -10 -9 -8 -7 -7 -7 -7 -7 -7 -6 -6 -6 -6 -6 -6 -5 -4 -4 -4 -4 -3 -3 ---------- Run | Scr Mat Min Exi Min Mat Fac Gar Fac Low Low Dat Pro Fac Ext Cet Arc Hub Fac Fac Upp Upp Zhi Pro Res Machines Disabled 28 | . . . . . 3 5 . . . . . . 1 1 . . 2 9 6 1 . . . . Max in Single Turn 5 | . . . . . 2 2 . . . . . . 1 1 . . 1 4 5 1 . . . . Garrison Access 1 | . . . . . . . . . . . . . . . . . . . 1 . . . . . Machines Sabotaged . | . . . . . . . . . . . . . . . . . . . . . . . . . Garrisons Compromised . | . . . . . . . . . . . . . . . . . . . . . . . . . Overloaded Fab Kills . | . . . . . . . . . . . . . . . . . . . . . . . . . Fab Network Shutdowns . | . . . . . . . . . . . . . . . . . . . . . . . . . Hacking | -11 -10 -10 -10 -9 -8 -7 -7 -7 -7 -7 -7 -6 -6 -6 -6 -6 -6 -5 -4 -4 -4 -4 -3 -3 --------- Run | Scr Mat Min Exi Min Mat Fac Gar Fac Low Low Dat Pro Fac Ext Cet Arc Hub Fac Fac Upp Upp Zhi Pro Res Machines Accessed 47 | . 7 . 2 . 5 3 . 1 . 1 4 . 3 1 3 1 . 4 3 . . 6 . 3 Terminals 27 | . 5 . . . 4 2 . 1 . . . . 3 1 3 . . 3 2 . . . . 3 Fabricators 1 | . . . . . . . . . . . . . . . . . . . 1 . . . . . Repair Stations . | . . . . . . . . . . . . . . . . . . . . . . . . . Recycling Units 4 | . 2 . . . 1 . . . . . . . . . . . . 1 . . . . . . Scanalyzers . | . . . . . . . . . . . . . . . . . . . . . . . . . Garrison Access 1 | . . . . . . 1 . . . . . . . . . . . . . . . . . . Total Hacks 154 | . 15 . 4 . 16 8 . 2 . 5 23 . 5 1 10 25 . 12 5 . . 19 . 4 Successful 107 | . 9 . 4 . 9 3 . 1 . 5 23 . 2 . 4 25 . 2 . . . 19 . 1 Failed 47 | . 6 . . . 7 5 . 1 . . . . 3 1 6 . . 10 5 . . . . 3 Catastrophic 8 | . . . . . . 2 . . . . . . 2 1 1 . . . 1 . . . . 1 Database Lockouts . | . . . . . . . . . . . . . . . . . . . . . . . . . Manual 59 | . 8 . 1 . 16 6 . 2 . . . . 3 2 3 . . 10 4 . . . . 4 Terminals 70 | . 13 . . . 15 6 . 2 . . . . 5 1 10 . . 10 4 . . . . 4 Fabricators 1 | . . . . . . . . . . . . . . . . . . . 1 . . . . . Repair Stations . | . . . . . . . . . . . . . . . . . . . . . . . . . Recycling Units 5 | . 2 . . . 1 . . . . . . . . . . . . 2 . . . . . . Scanalyzers . | . . . . . . . . . . . . . . . . . . . . . . . . . Garrison Access 2 | . . . . . . 2 . . . . . . . . . . . . . . . . . . Terminal Hacks 96 | . 6 . 4 . 6 1 . . . 5 23 . 1 . 4 25 . 1 . . . 19 . 1 Record 55 | . . . 3 . . . . . . 5 11 . . . 4 25 . . . . . 7 . . Part Schematic 9 | . . . . . . . . . . . 5 . . . . . . . . . . 4 . . Robot Schematic 4 | . . . . . . . . . . . 4 . . . . . . . . . . . . . Robot Analysis 9 | . 1 . . . 3 . . . . . . . 1 . . . . . . . . 4 . . Prototype ID Bank 7 | . . . . . . . . . . . 3 . . . . . . . . . . 4 . . Level Access Points 1 | . . . . . . . . . . . . . . . . . . . . . . . . 1 Recycling Unit Index 1 | . . . . . 1 . . . . . . . . . . . . . . . . . . . Alert Level 1 | . . . . . 1 . . . . . . . . . . . . . . . . . . . Unreport Threat 3 | . . . . . 1 1 . . . . . . . . . . . 1 . . . . . . Locate Traps 1 | . 1 . . . . . . . . . . . . . . . . . . . . . . . Dispatch Records 1 | . 1 . . . . . . . . . . . . . . . . . . . . . . . Hauler Manifests 1 | . 1 . . . . . . . . . . . . . . . . . . . . . . . Zone Layout 2 | . 2 . . . . . . . . . . . . . . . . . . . . . . . EX-Prototype ID Bank 1 | . . . 1 . . . . . . . . . . . . . . . . . . . . . Fabricator Hacks . | . . . . . . . . . . . . . . . . . . . . . . . . . Repair Station Hacks . | . . . . . . . . . . . . . . . . . . . . . . . . . Recycling Unit Hacks . | . . . . . . . . . . . . . . . . . . . . . . . . . Scanalyzer . | . . . . . . . . . . . . . . . . . . . . . . . . . Garrison Access Hacks 1 | . . . . . . 1 . . . . . . . . . . . . . . . . . . Unlock Access 1 | . . . . . . 1 . . . . . . . . . . . . . . . . . . Unauthorized Hacks 10 | . 3 . . . 3 1 . 1 . . . . 1 . . . . 1 . . . . . . Terminals 7 | . 1 . . . 2 1 . 1 . . . . 1 . . . . 1 . . . . . . Botnet 7 | . 1 . . . 2 1 . 1 . . . . 1 . . . . 1 . . . . . . Fabricators . | . . . . . . . . . . . . . . . . . . . . . . . . . Repair Stations . | . . . . . . . . . . . . . . . . . . . . . . . . . Recycling Units 3 | . 2 . . . 1 . . . . . . . . . . . . . . . . . . . Tunnel 3 | . 2 . . . 1 . . . . . . . . . . . . . . . . . . . Scanalyzers . | . . . . . . . . . . . . . . . . . . . . . . . . . Garrison Access . | . . . . . . . . . . . . . . . . . . . . . . . . . Data Cores Recovered . | . . . . . . . . . . . . . . . . . . . . . . . . . Used . | . . . . . . . . . . . . . . . . . . . . . . . . . Hacking Detections 28 | . 5 . . . 4 3 . 1 . . . . 3 1 3 . . 4 2 . . . . 2 Full Trace Events 2 | . . . . . . . . . . . . . . . 1 . . . . . . . . 1 Feedback Events . | . . . . . . . . . . . . . . . . . . . . . . . . . Feedback Blocked . | . . . . . . . . . . . . . . . . . . . . . . . . . Robot Schematics Acquired 4 | . . . . . . . . . . . 4 . . . . . . . . . . . . . Robots Built . | . . . . . . . . . . . . . . . . . . . . . . . . . Matter . | . . . . . . . . . . . . . . . . . . . . . . . . . Time . | . . . . . . . . . . . . . . . . . . . . . . . . . Total Robot Build Rating . | . . . . . . . . . . . . . . . . . . . . . . . . . Part Schematics Acquired 9 | . . . . . . . . . . . 5 . . . . . . . . . . 4 . . Parts Built . | . . . . . . . . . . . . . . . . . . . . . . . . . Matter . | . . . . . . . . . . . . . . . . . . . . . . . . . Time . | . . . . . . . . . . . . . . . . . . . . . . . . . Total Part Build Rating . | . . . . . . . . . . . . . . . . . . . . . . . . . Parts Repaired . | . . . . . . . . . . . . . . . . . . . . . . . . . Time . | . . . . . . . . . . . . . . . . . . . . . . . . . Parts Recycled . | . . . . . . . . . . . . . . . . . . . . . . . . . Recycled Matter . | . . . . . . . . . . . . . . . . . . . . . . . . . Retrieved Matter . | . . . . . . . . . . . . . . . . . . . . . . . . . Retrieved Components . | . . . . . . . . . . . . . . . . . . . . . . . . . Parts Scanalyzed . | . . . . . . . . . . . . . . . . . . . . . . . . . Part Schematics Acquired . | . . . . . . . . . . . . . . . . . . . . . . . . . Parts Damaged . | . . . . . . . . . . . . . . . . . . . . . . . . . Bothacking | -11 -10 -10 -10 -9 -8 -7 -7 -7 -7 -7 -7 -6 -6 -6 -6 -6 -6 -5 -4 -4 -4 -4 -3 -3 ------------ Run | Scr Mat Min Exi Min Mat Fac Gar Fac Low Low Dat Pro Fac Ext Cet Arc Hub Fac Fac Upp Upp Zhi Pro Res Used RIF Installer 1 | . . . . . . . 1 . . . . . . . . . . . . . . . . . Robots Hacked 4 | . . . . . . . . . . . . . 1 . . . . . . . . 3 . . Non-combat . | . . . . . . . . . . . . . . . . . . . . . . . . . Combat 4 | . . . . . . . . . . . . . 1 . . . . . . . . 3 . . Robot Hacks Applied 4 | . . . . . . . . . . . . . 1 . . . . . . . . 3 . . parse_system 4 | . . . . . . . . . . . . . 1 . . . . . . . . 3 . . Relay Couplers Released 10 | . . . . . . . . . . . . . . . . . . . 3 . . . . 7 Machine Destruction 3 | . . . . . . . . . . . . . . . . . . . 3 . . . . . Programmers 7 | . . . . . . . . . . . . . . . . . . . . . . . . 7 Robots Rewired 10 | . . . . . . . . . . . . . . 8 . . . . . 2 . . . . Allies Hacked . | . . . . . . . . . . . . . . . . . . . . . . . . . Hacks Repelled . | . . . . . . . . . . . . . . . . . . . . . . . . . Allies | -11 -10 -10 -10 -9 -8 -7 -7 -7 -7 -7 -7 -6 -6 -6 -6 -6 -6 -5 -4 -4 -4 -4 -3 -3 -------- Run | Scr Mat Min Exi Min Mat Fac Gar Fac Low Low Dat Pro Fac Ext Cet Arc Hub Fac Fac Upp Upp Zhi Pro Res Total Allies 23 | . . . . . . . . . . . . 1 . 12 5 . . . 3 2 . . . . Largest Group 10 | . . . . . . . . . . . . 1 . 10 6 3 3 . 3 2 2 2 2 1 Highest-Rated Group 626 | . . . . . . . . . . . . 94 . 408 626 282 282 . 138 77 77 74 74 28 Highest-Rated Ally 156 | . . . . . . . . . . . . 94 . 156 156 94 94 . 46 47 47 44 44 28 Total Orders . | . . . . . . . . . . . . . . . . . . . . . . . . . Ally Attacks 379 | . . . . . . . . . . . . 34 . 146 91 11 51 . 14 . 26 . 6 . Total Damage 11412 | . . . . . . . . . . . . 1224 . 3324 3025 472 1974 . 434 . 782 . 177 . Kills 82 | . . . . . . . . . . . . 13 . 21 21 2 12 . 3 . 8 . 2 . Allies Corrupted . | . . . . . . . . . . . . . . . . . . . . . . . . . Allies Melted . | . . . . . . . . . . . . . . . . . . . . . . . . . Intel | -11 -10 -10 -10 -9 -8 -7 -7 -7 -7 -7 -7 -6 -6 -6 -6 -6 -6 -5 -4 -4 -4 -4 -3 -3 ------- Run | Scr Mat Min Exi Min Mat Fac Gar Fac Low Low Dat Pro Fac Ext Cet Arc Hub Fac Fac Upp Upp Zhi Pro Res Robot Analysis Total 9 | . 1 . . . 3 . . . . . . . 1 . . . . . . . . 4 . . Derelict Logs Recovered 8 | . . 1 . 1 . . . . 2 . . 2 . . . . . . . 1 1 . . . Drone Launches . | . . . . . . . . . . . . . . . . . . . . . . . . . Drone Recoveries . | . . . . . . . . . . . . . . . . . . . . . . . . . Exploration | -11 -10 -10 -10 -9 -8 -7 -7 -7 -7 -7 -7 -6 -6 -6 -6 -6 -6 -5 -4 -4 -4 -4 -3 -3 ------------- Run | Scr Mat Min Exi Min Mat Fac Gar Fac Low Low Dat Pro Fac Ext Cet Arc Hub Fac Fac Upp Upp Zhi Pro Res Turns Passed 18046 | 25 1323 1222 565 239 475 1179 591 251 565 397 93 1001 1242 1126 600 226 259 1866 1639 706 310 429 398 1319 Spaces Moved 10120 | 15 1021 840 373 149 252 787 289 172 402 285 78 463 688 665 232 122 114 836 678 323 156 251 213 716 Core . | . . . . . . . . . . . . . . . . . . . . . . . . . Treads 4244 | . 61 . . . . . 46 4 . . . 306 . 186 232 122 114 836 678 323 156 251 213 716 Legs 169 | . . . . . . . . . . . . 62 107 . . . . . . . . . . . Wheels 5707 | 15 960 840 373 149 252 787 243 168 402 285 78 95 581 479 . . . . . . . . . . Hover . | . . . . . . . . . . . . . . . . . . . . . . . . . Flight . | . . . . . . . . . . . . . . . . . . . . . . . . . Fastest Speed 80 | 90 90 100 80 160 120 120 130 80 120 120 120 110 120 130 160 160 160 160 160 160 160 160 160 160 Average Speed 140 | 90 108 109 147 160 120 128 138 121 120 120 120 170 145 138 160 164 160 161 160 160 160 160 160 161 Slowest Speed 220 | 90 180 110 160 160 120 130 180 180 120 120 120 220 190 180 160 180 160 162 162 160 160 160 160 162 Overloaded Moves . | . . . . . . . . . . . . . . . . . . . . . . . . . Propulsion Burnouts . | . . . . . . . . . . . . . . . . . . . . . . . . . Robots Hopped . | . . . . . . . . . . . . . . . . . . . . . . . . . Cave-ins Triggered 1 | . . . . . . . . . . . . . . . . . . 1 . . . . . . Exploration Rate (%) 48 | 3 96 99 77 37 25 23 47 4 58 56 68 67 23 73 69 89 16 35 28 55 30 62 40 24 Regions Visited 24 Branch Regions 15 Pre-discovered Areas 10 | . 2 . 1 . 1 . . . . . 1 1 . . . . . . . 1 . 3 . . Known Exits Taken 11 | . 1 . . . . 1 . 1 . . . 1 1 1 1 1 1 1 1 . . . . . Unknown Exits Taken 12 | 1 . 1 1 1 1 . . . 1 1 1 . . . . . . . . 1 1 1 1 . Scrap Searched 14 | . . 1 . 2 . . . . 4 2 . 1 . . . . . . . 3 . . 1 . Spaces Dug 24 | . . . . . 1 6 . . . . . . 4 . . . 1 6 6 . . . . . Terrain Destroyed 414 | 4 9 64 . . 42 49 2 . . . . 33 4 3 . . 3 75 83 24 2 . 9 8 Melee 14 | . . . . . 1 6 . . . . . . . . . . . 1 6 . . . . . Projectile 132 | . . . . . 3 . . . . . . . 4 3 . . 3 49 27 24 2 . 9 8 AOE 268 | 4 9 64 . . 38 43 2 . . . . 33 . . . . . 25 50 . . . . . Terrain Rammed . | . . . . . . . . . . . . . . . . . . . . . . . . . Walls Destroyed . | . . . . . . . . . . . . . . . . . . . . . . . . . Machines Disabled . | . . . . . . . . . . . . . . . . . . . . . . . . . Actions | -11 -10 -10 -10 -9 -8 -7 -7 -7 -7 -7 -7 -6 -6 -6 -6 -6 -6 -5 -4 -4 -4 -4 -3 -3 --------- Run | Scr Mat Min Exi Min Mat Fac Gar Fac Low Low Dat Pro Fac Ext Cet Arc Hub Fac Fac Upp Upp Zhi Pro Res Total 12640 | 20 1134 1084 389 150 349 910 420 206 444 318 77 562 882 800 416 134 148 1214 1012 417 194 278 245 837 Wait 1276 | . 26 187 . . 30 47 90 1 3 17 . 14 96 45 119 1 5 283 184 28 21 2 19 58 Move 10096 | 14 1020 839 372 148 251 787 288 171 401 284 77 462 687 664 231 121 113 834 677 322 155 250 212 716 Hop . | . . . . . . . . . . . . . . . . . . . . . . . . . Pick Up 220 | . 14 10 14 2 11 17 4 19 10 3 . 5 26 10 10 1 1 14 16 8 4 3 . 18 Fast Attach 57 | 1 4 1 1 . . 5 2 4 . . . 9 7 2 6 1 2 1 5 . . 3 2 1 Attach 90 | . 3 3 . . 6 3 5 . 5 2 . 14 3 . 6 1 1 4 9 11 3 4 1 6 Detach 15 | . . . . . . 2 . . . . . . 1 1 . . . 1 1 2 . 4 1 2 Swap 101 | 3 7 4 . . 10 6 4 . 1 . . 4 13 14 4 1 2 9 10 2 1 4 . 2 Drop 162 | . 9 6 2 . 7 17 . 5 5 2 . 3 20 15 18 2 4 6 18 1 1 5 . 16 Fire 557 | 2 51 34 . . 33 19 27 4 19 10 . 43 22 30 22 6 20 56 85 37 9 . 10 18 Melee 52 | . . . . . 1 7 . . . . . 8 7 13 . . . 1 6 6 . 3 . . Ram . | . . . . . . . . . . . . . . . . . . . . . . . . . Kick . | . . . . . . . . . . . . . . . . . . . . . . . . . Crush 5 | . . . . . . . . . . . . . . . . . . 4 1 . . . . . Escape Stasis 9 | . . . . . . . . 2 . . . . . 6 . . . 1 . . . . . . Rewire . | . . . . . . . . . . . . . . . . . . . . . . . . . Trap . | . . . . . . . . . . . . . . . . . . . . . . . . . Miscellaneous . | . . . . . . . . . . . . . . . . . . . . . . . . . Route ------- -11/Scrapyard -10/Materials (discovered 4 exits: *Mat x3 / *Min) -10/Mines (discovered 3 exits: *Mat x2 / *Exi) -10/Exiles (discovered 2 exits: [*Min x2]) -9/Mines -8/Materials -7/Factory -7/Garrison (discovered 2 exits: *Fac x2) -7/Factory -7/Lower Caves -7/Lower Caves (discovered 2 exits: *Fac / *Dat) -7/Data Miner -6/Proximity Caves -6/Factory (discovered 2 exits: Fac / *Ext) -6/Extension (discovered 2 exits: *Fac / *Cet) -6/Cetus (discovered 2 exits: *Fac / *Arc) -6/Archives (discovered 3 exits: *Fac / *Hub x2) -6/Hub_04(d) -5/Factory -4/Factory -4/Upper Caves -4/Upper Caves -4/Zhirov -3/Proximity Caves -3/Research (discovered 5 exits: Res x3 / *Arm / *Tes) History --------- Turn | Location | Event 9 | -11/Scrapyard | Discovered new exit (range 2) 26 | -11/Scrapyard | Entered Materials 222 | -10/Materials | Discovered new exit (range 11) 231 | -10/Materials | Destroyed 7 combat bots 311 | -10/Materials | Build established: Mutant 508 | -10/Materials | Discovered new exit (range 8) 945 | -10/Materials | Discovered new exit (range 16) 1076 | -10/Materials | Discovered new exit (range 16) 1290 | -10/Materials | Identified exit to Materials 1346 | -10/Materials | Identified exit to Mines 1349 | -10/Materials | Entered Mines 1386 | -10/Mines | Assembled infested the area 1448 | -10/Mines | Destroyed 10 combat bots 1672 | -10/Mines | Core integrity fell below 50% 1793 | -10/Mines | Discovered exit to Materials (range 12) 1926 | -10/Mines | Discovered exit to Materials (range 5) 2067 | -10/Mines | A weapon hastily lodged in a ceiling crevice suddenly fell to the ground 2141 | -10/Mines | Learned Materials terminal intel 2565 | -10/Mines | Deemed a non-threat by the Exiles lab entrance 2566 | -10/Mines | Discovered new exit (range 5) 2571 | -10/Mines | Entered Exiles 2589 | -10/Exiles | Discovered new exit (range 15) 2602 | -10/Exiles | Met 8R-AWN 2620 | -10/Exiles | Met EX-HEX 2736 | -10/Exiles | Met EX-DEC 2763 | -10/Exiles | Visited The Gauntlet 2839 | -10/Exiles | Learned location of Zion (-6) 2877 | -10/Exiles | Met EX-BIN 2900 | -10/Exiles | Aligned with FarCom system 2901 | -10/Exiles | Given EX-Vault access code 2940 | -10/Exiles | Opened EX-Vault 2948 | -10/Exiles | Found Modified TNC 2977 | -10/Exiles | Build established: Hauler-Mutant 2979 | -10/Exiles | Warned to stay clear of 0b10 Research branches 3115 | -10/Exiles | Discovered new exit (range 14) 3136 | -10/Exiles | Left Exiles lab with Modified TNC 3136 | -10/Exiles | Entered Mines 3165 | -9/Mines | Met a Derelict bent on vengeance 3354 | -9/Mines | Discovered new exit (range 6) 3369 | -9/Mines | Learned 2 Materials zone layouts 3375 | -9/Mines | Entered Materials 3375 | -8/Materials | Evolved 4 slots: Propulsion x2, Utility x1, Weapon x1 3377 | -8/Materials | Loaded intel: 11 terminal locations 3666 | -8/Materials | Build established: Hauler-Skirmisher 3769 | -8/Materials | Discovered new exit (range 16) 3850 | -8/Materials | Entered Factory 3850 | -7/Factory | Evolved 2 slots: Propulsion x1, Utility x1 4032 | -7/Factory | Build established: Scavenger-Skirmisher 5029 | -7/Factory | Identified exit to Garrison 5029 | -7/Factory | Entered Garrison 5214 | -7/Garrison | Triggered checkpoint 5227 | -7/Garrison | Triggered checkpoint 5272 | -7/Garrison | Destroyed 9 combat bots 5283 | -7/Garrison | Spotted B-75 Beast 5283 | -7/Garrison | Spotted B-75 Beast 5308 | -7/Garrison | Triggered checkpoint 5381 | -7/Garrison | Lost 3 parts (3n) 5479 | -7/Garrison | Discovered new exit (range 15) 5481 | -7/Garrison | Build established: Hauler-Skirmisher 5544 | -7/Garrison | Triggered checkpoint 5595 | -7/Garrison | Discovered new exit (range 8) 5614 | -7/Garrison | Installed Relay Interface Framework 5620 | -7/Garrison | Entered Factory 5793 | -7/Factory | Discovered new exit (range 5) 5803 | -7/Factory | Identified exit to Lower Caves 5871 | -7/Factory | Entered Lower Caves 5946 | -7/Lower Caves | Learned location of 1 exit from Proximity Caves 6100 | -7/Lower Caves | Learned Factory terminal intel 6181 | -7/Lower Caves | Build established: Hauler-Gunner 6274 | -7/Lower Caves | Attacked by a faux Warlord 6317 | -7/Lower Caves | Lost 3 parts (1n2w) 6407 | -7/Lower Caves | Discovered new exit (range 16) 6417 | -7/Lower Caves | Encountered a Warlord checkpoint 6436 | -7/Lower Caves | Entered another Lower Caves area 6469 | -7/Lower Caves | Discovered new exit (range 14) 6480 | -7/Lower Caves | Learned location of 1 exit from Factory 6480 | -7/Lower Caves | Learned Factory trap positions 6480 | -7/Lower Caves | Learned Research security intel 6480 | -7/Lower Caves | Learned Extension terminal intel 6575 | -7/Lower Caves | Build established: Scavenger-Gunner 6732 | -7/Lower Caves | Encountered a Warlord checkpoint 6812 | -7/Lower Caves | Discovered new exit (range 15) 6825 | -7/Lower Caves | Attracted the attention of an 0b10 checkpoint 6833 | -7/Lower Caves | Entered Data Miner 6833 | -7/Data Miner | Discovered new exit (range 6) 6856 | -7/Data Miner | Met Data Miner 6880 | -7/Data Miner | Learned location of Section 7 (-2) 6880 | -7/Data Miner | Acquired the access code to Warlord's prototype stash 6899 | -7/Data Miner | Received God Mode back door access code from Data Miner 6926 | -7/Data Miner | Entered Proximity Caves 6927 | -6/Proximity Caves | Identified exit to Factory 7047 | -6/Proximity Caves | Escorted by Enhanced Grunt 7094 | -6/Proximity Caves | Lost 4 parts (3n1w) 7133 | -6/Proximity Caves | Learned Factory stockpile data 7326 | -6/Proximity Caves | Attracted the attention of an 0b10 outpost 7339 | -6/Proximity Caves | Core integrity fell below 50% 7389 | -6/Proximity Caves | Received a Behemoth hack from an annoying Tinkerer 7667 | -6/Proximity Caves | Lost 6 parts (1p2n3w) 7820 | -6/Proximity Caves | Core integrity fell below 20% 7845 | -6/Proximity Caves | Destroyed 8 combat bots 7846 | -6/Proximity Caves | Lost 6 parts (2n4w) 7851 | -6/Proximity Caves | Attracted the attention of an 0b10 checkpoint 7927 | -6/Proximity Caves | Entered Factory 7927 | -6/Factory | Evolved 2 slots: Utility x2 7928 | -6/Factory | Identified exit to Factory 7929 | -6/Factory | Loaded intel: 123 trap records 7931 | -6/Factory | Loaded intel: 21 terminal locations 8209 | -6/Factory | Build established: Scavenger-Mutant 9111 | -6/Factory | Discovered new exit (range 9) 9168 | -6/Factory | Identified exit to Extension 9169 | -6/Factory | Entered Extension 9170 | -6/Extension | Loaded intel: 13 terminal locations 9261 | -6/Extension | Rescued a captive Derelict 9288 | -6/Extension | Build established: Hauler-Tank 9309 | -6/Extension | Rescued A7 9438 | -6/Extension | Rescued a captive Derelict 9438 | -6/Extension | Rescued a captive Derelict 9846 | -6/Extension | Build established: Commander-Mutant 9956 | -6/Extension | Spotted B-75 Beast 9969 | -6/Extension | Destroyed B-75 Beast 9994 | -6/Extension | Disrupted transfer network 10174 | -6/Extension | Discovered exit to Factory (range 16) 10174 | -6/Extension | Discovered new exit (range 16) 10219 | -6/Extension | First assault squad dispatched 10281 | -6/Extension | Build established: Scavenger-Tank 10293 | -6/Extension | Identified exit to Cetus 10295 | -6/Extension | Entered Cetus 10295 | -6/Cetus | Accompanied by 3 allies (A7) 10300 | -6/Cetus | Acquired a Cetus Manufacturing Module code from A7 10317 | -6/Cetus | Spotted Cetus Guard 10317 | -6/Cetus | Spotted Cetus Guard 10323 | -6/Cetus | Spotted Cetus Guard 10323 | -6/Cetus | Allies destroyed Cetus Guard 10323 | -6/Cetus | Spotted Cetus Guard 10327 | -6/Cetus | Destroyed Cetus Guard 10328 | -6/Cetus | Allies destroyed Cetus Guard 10338 | -6/Cetus | Allies destroyed Cetus Guard 10462 | -6/Cetus | Incoming investigation squad redirected 10514 | -6/Cetus | Started Cetus Manufacturing Module 10539 | -6/Cetus | Manufactured an Enhanced Grunt 10564 | -6/Cetus | Manufactured an Enhanced Grunt 10589 | -6/Cetus | Manufactured an Enhanced Grunt 10614 | -6/Cetus | Manufactured an Enhanced Grunt 10639 | -6/Cetus | Manufactured an Enhanced Grunt 10727 | -6/Cetus | Build established: Scavenger-Skirmisher 10731 | -6/Cetus | Discovered new exit (range 15) 10757 | -6/Cetus | Spotted Cetus Guard 10758 | -6/Cetus | Spotted Cetus Guard 10760 | -6/Cetus | Spotted Cetus Guard 10760 | -6/Cetus | Spotted Cetus Guard 10770 | -6/Cetus | Allies destroyed Cetus Guard 10775 | -6/Cetus | Allies destroyed Cetus Guard 10775 | -6/Cetus | Found Prototype Device 10775 | -6/Cetus | Identified Exp. Thermal Shield 10782 | -6/Cetus | Allies destroyed Cetus Guard 10782 | -6/Cetus | Allies destroyed Cetus Guard 10783 | -6/Cetus | Discovered exit to Factory (range 16) 10823 | -6/Cetus | Met Revision 17 10892 | -6/Cetus | Identified exit to Archives 10895 | -6/Cetus | Entered Archives 10895 | -6/Archives | Accompanied by 4 allies (A7) 10952 | -6/Archives | Discovered exit to Factory (range 14) 10972 | -6/Archives | Unable to access archive contents 10995 | -6/Archives | Unable to access archive contents 10999 | -6/Archives | Discovered new exit (range 15) 11024 | -6/Archives | Discovered new exit (range 13) 11041 | -6/Archives | Identified exit to Hub_04(d) 11068 | -6/Archives | Unable to access archive contents 11082 | -6/Archives | Build established: Scavenger-Tank 11121 | -6/Archives | Entered Hub_04(d) 11121 | -6/Hub_04(d) | Accompanied by 3 allies 11197 | -6/Hub_04(d) | Incoming investigation squad redirected 11292 | -6/Hub_04(d) | Discovered exit to Factory (range 15) 11380 | -6/Hub_04(d) | Entered Factory 11380 | -5/Factory | Evolved 2 slots: Propulsion x1, Weapon x1 12651 | -5/Factory | Garrison activated, responded to threat 12689 | -5/Factory | Crushed by falling debris 12917 | -5/Factory | System corruption reached 10% 13222 | -5/Factory | Discovered new exit (range 16) 13245 | -5/Factory | Identified exit to Factory 13246 | -5/Factory | Entered another Factory area 13246 | -4/Factory | Evolved 2 slots: Utility x2 13496 | -4/Factory | First assault squad dispatched 13513 | -4/Factory | Incoming assault squad redirected 13518 | -4/Factory | Incoming assault squad redirected 14017 | -4/Factory | Incoming assault squad redirected 14337 | -4/Factory | Allied Derelicts emerged from ambush trap array 14424 | -4/Factory | Incoming assault squad redirected 14465 | -4/Factory | Build established: Hauler-Tank 14525 | -4/Factory | Incoming assault squad redirected 14850 | -4/Factory | Discovered new exit (range 16) 14881 | -4/Factory | Identified exit to Upper Caves 14885 | -4/Factory | Entered Upper Caves 14910 | -4/Upper Caves | Attracted the attention of an 0b10 checkpoint 15109 | -4/Upper Caves | Spotted B-86 Titan 15135 | -4/Upper Caves | Destroyed B-86 Titan 15395 | -4/Upper Caves | Learned location of Quarantine (-2) 15408 | -4/Upper Caves | Attracted the attention of an 0b10 outpost 15461 | -4/Upper Caves | Lost 4 parts (2n1u1w) 15462 | -4/Upper Caves | System corruption reached 10% 15496 | -4/Upper Caves | Destroyed 9 combat bots 15570 | -4/Upper Caves | Discovered new exit (range 9) 15591 | -4/Upper Caves | Entered another Upper Caves area 15591 | -4/Upper Caves | Accompanied by 2 allies 15665 | -4/Upper Caves | Learned Research emergency access door positions 15859 | -4/Upper Caves | Discovered new exit (range 16) 15901 | -4/Upper Caves | Entered Zhirov 15901 | -4/Zhirov | Accompanied by 2 allies 15901 | -4/Zhirov | Discovered new exit (range 3) 15930 | -4/Zhirov | Met Zhirov 15982 | -4/Zhirov | Learned location of Command (-1) 16011 | -4/Zhirov | Zhirov requested help retrieving the SGEMP Prototype 16058 | -4/Zhirov | Found Alien Artifact 16059 | -4/Zhirov | Identified Integrated Dissipator 16059 | -4/Zhirov | Installed Integrated Dissipator, increased core heat dissipation (+20) 16104 | -4/Zhirov | Found Alien Artifact 16232 | -4/Zhirov | Build established: Hauler-Mutant 16330 | -4/Zhirov | Entered Proximity Caves 16330 | -3/Proximity Caves | Accompanied by 2 allies 16612 | -3/Proximity Caves | Build established: Hauler-Tank 16702 | -3/Proximity Caves | Discovered new exit (range 13) 16728 | -3/Proximity Caves | Entered Research 16728 | -3/Research | Accompanied by 1 ally 16728 | -3/Research | Evolved 2 slots: Utility x1, Weapon x1 16921 | -3/Research | Discovered new exit (range 9) 16928 | -3/Research | Revision forces began assault on 0b10 16932 | -3/Research | Identified exit to Testing 16989 | -3/Research | Met up with Revision 17++ 17029 | -3/Research | Build established: Scavenger-Tank 17339 | -3/Research | Identified exit to Research 17428 | -3/Research | Research terminal network offline 17447 | -3/Research | Discovered new exit (range 13) 17519 | -3/Research | Identified exit to Armory 17676 | -3/Research | Spotted Striker 17683 | -3/Research | Destroyed Striker 17876 | -3/Research | Build established: Scavenger-Gunner 17950 | -3/Research | Spotted Striker 17957 | -3/Research | Spotted Striker 17959 | -3/Research | Destroyed Striker 18047 | -3/Research | Self-destructed Last Messages --------------- 17897_ The floor emits a surge of raw power. 17898_ The unstable cave ceiling collapses. 17912_ Dropped Adv. Signal Interpreter. 17912_ Acquired Railgun. 17917_ Dropped Hvy. Armor Plating. 17917_ Acquired Hvy. Armor Plating. 17956_ Slug penetrates Striker. 17956_ Slug penetrates Wall. 17956_ Slug penetrates Striker. 17958_ Activated siege mode. 17959_ Slug penetrates Striker. 17959_ Striker destroyed. 17959_ Slug penetrates Wall. 17962_ Revision 17++ knocked back. 17963_ Slug penetrates Wall. 17972_ Ended siege mode. 17973_ Acquired 70 matter. 17976_ Revision destroyed. 17978_ Striker destroyed. 18015_ The unstable cave ceiling collapses. Map ----- +----------------------------------------------------+ | ?????????????????????????????????????????????????? | | ?????????????????????????????????????????????????? | | ?????????????????????????????????????????????????? | | ?????????????????????????????????????????????????? | | ?????????????????????????????????????????????????? | | ???????????????????????????????????????????####### | | ???????????????????????????????????????????# | | ???????????????????????????????????????????#! [ | | ???????????????????????????????????????????# | | ???????????????????????????????????????????# | | ???????????????????????????????????????????####### | | ?????????????????????????????????????????????????? | | ?????????????????????????????????????????????????# | | ?????????????????????????????????????????????????# | | ?????????????????????????????????????????????????# | | ???????????????????????##############?????????+??+ | | ???????????????????????# #????????????# | | ???????????????????????# #????????????# | | ???????????????????????# #????????????# | | ???????????????????????# ! #+##+######### | | ???????????????????????# # | | ???????????????????????# + | | ???????????????????????# v# | | ???????????????????????# % v # | | ???????????????????????#!=!= v ####+## # # | | ???????????????????????#%@V! !! #??# | | ???????????????????????+ %[ !! #??# | | ???????????????????????# !! #??# """ | | ???????????????????????##############??# """ | | ???????????????????????????????????????# """ | | ???????????????????????????????????????# | | ???????????????????????????????????????# | | ???????????????????????????????????????###### | | ????????????????????????????????????????????###### | | ?????????????????????????????????????????????????? | | ?????????????????????????????????????????????????? | | ?????????????????????????????????????????????????? | | ?????????????????????????????????????????????????? | | ?????????????????????????????????????????????????? | | ?????????????????????????????????????????????????? | | ?????????????????????????????????????????????????? | | ??????????????????????????????????????????+???+??? | | ?????????????????????????????????????????????????? | | ?????????????????????????????????????????????????? | | ?????????????????????????????????????????????????? | | ?????????????????????????????????????????????????? | | ?????????????????????????????????????????????????? | | ?????????????????????????????????????????????????? | | ?????????????????????????????????????????????????? | | ?????????????????????????????????????????????????? | +----------------------------------------------------+ Best States ------------- Heat Dissipation 89 Energy Generation 25 Energy Capacity 350 Matter Stores 600 Matter Capacity 600 Sight Range 16 Terrain Scan Range 20 Terrain Scan Density 10 Armor Coverage 1800 Resistance: TH 10 Evasion (%) 44 Targeting Accuracy 8 Target Analysis 6 Core Analysis 8 Armor Integrity Analysis 66 Recoil Reduction 6 Matter Filtering 50 Offensive Hacking 12 Item Schematics ----------------- Combat Drone Bay | -7/Data Miner | Free Lgt. Regenerative Plating | -7/Data Miner | Free Exp. Terrain Scan Processor | -7/Data Miner | Free Mni. Smartbomb Launcher | -7/Data Miner | Free Plasma Sword | -7/Data Miner | Free Assault Drone Bay | -4/Zhirov | Free Exp. Heat Sink | -4/Zhirov | Free Exp. Optical Array | -4/Zhirov | Free Imp. Arc Thrower | -4/Zhirov | Free Robot Schematics ------------------ S-27 Virus | -7/Data Miner | Free G-50 Soldier | -7/Data Miner | Free L-41 Fighter | -7/Data Miner | Free I-36 Angel | -7/Data Miner | Free Fabricated ------------ Nothing Alien Tech Used ----------------- Integrated Dissipator Achievements -------------- Adventurer Brute Force Explorer Generalissimo Knowing Is Half The Battle Prison Break Project G-00 Revising The Future Revolutionary Research Challenges ------------ None Game ------ Seed SiegeAssaultInjector Manual? 0 Play Time 04:18:04 Cumulative 50.5 hours Start 2022.02.11 @ 12:39:06 End 2022.02.16 @ 16:21:31 Sessions 13 Manual Loads 0 Difficulty Rogue Special Mode None Game No. 23 Rogue 23 Adventurer 0 Explorer 0 Win Type - Total 1 Types 1/0/0/0/0/0/0/0/0 Lore% 41 Gallery% 43 Achievement% 38 Wizard Run 0 Options --------- ASCII 0 Keyboard 0 Movement Mouse Keybinds 0 Fullscreen 1 Font 18/SmallcapsGlow Map View 76x50 Tactical HUD 1 Map Filters NONE Filters NONE Steam 1 RUN: 3352ce68-eabb-4d83-9cc0-92db66693fa3